bitfinex/quotes_BTCUSD_20240827
["timestamp","ask_amount","ask_price","bid_price","bid_amount"]
[1724717489889,0.0009064,62998.0,62997.0,2.79738522]
[1724717490103,0.0009064,62998.0,62997.0,2.82038522]
[1724717491263,0.0009064,62998.0,62997.0,2.34789976]
[1724717491476,0.0009064,62998.0,62997.0,2.45607059]
[1724717492872,0.0009064,62998.0,62997.0,2.44117082]
[1724717493074,0.0009064,62998.0,62997.0,2.45607169]
[1724717493392,0.0009064,62998.0,62997.0,2.44117082]
[1724717493817,0.0009064,62998.0,62997.0,2.45607169]
[1724717495487,0.0009064,62998.0,62997.0,2.77354669]
[1724717495685,0.0009064,62998.0,62997.0,2.47991263]
[1724717499136,0.0009064,62998.0,62997.0,2.79738763]
[1724717499318,0.0009064,62998.0,62997.0,2.47991263]
[1724717500020,0.0009064,62998.0,62997.0,2.79738763]
[1724717500469,0.0009064,62998.0,62997.0,2.47991263]
[1724717500778,0.0009064,62998.0,62997.0,2.79738763]
[1724717500985,0.0009064,62998.0,62997.0,2.47991263]
[1724717501639,0.0009064,62998.0,62997.0,2.79738763]
[1724717501892,0.0009064,62998.0,62997.0,2.47991263]
[1724717502400,0.0009064,62998.0,62997.0,2.79738763]
[1724717502628,0.0004,62999.0,62998.0,1.429615]
[1724717502856,0.009053,63003.0,63002.0,0.90279583]
[1724717503071,0.009053,63003.0,63002.0,2.29389246]
[1724717503258,0.009053,63003.0,63002.0,2.6262416]
[1724717503778,0.009053,63003.0,63002.0,2.63816053]
[1724717505143,0.009053,63003.0,63002.0,2.65216053]
[1724717505343,0.009053,63003.0,63002.0,2.63816053]
[1724717505744,0.009053,63003.0,63002.0,2.65216053]
[1724717506369,0.009053,63003.0,63002.0,2.72856053]
[1724717508214,0.009053,63003.0,63002.0,2.80426053]
[1724717509298,0.009053,63003.0,63002.0,2.6960897]
[1724717509500,0.009053,63003.0,63002.0,2.66616053]
[1724717510356,0.009053,63003.0,63002.0,2.66616038]
[1724717512590,0.009053,63003.0,63002.0,2.67494004]
[1724717512826,0.009053,63003.0,63002.0,2.81300025]
[1724717513000,0.009053,63003.0,63002.0,2.76548291]
[1724717513201,0.009053,63003.0,63002.0,2.90233335]
[1724717513418,0.009053,63003.0,63002.0,2.91425203]
[1724717514192,0.009053,63003.0,63002.0,2.84297602]
[1724717515218,0.009053,63003.0,63002.0,2.9380107]
[1724717515992,0.009053,63003.0,63002.0,3.08450967]
[1724717516217,0.009053,63003.0,63002.0,3.40195967]
[1724717516420,0.0812,63024.0,63018.0,0.159684]
[1724717516628,0.0812,63024.0,63018.0,1.66481087]
[1724717516801,0.0812,63024.0,63018.0,2.61691787]
[1724717517001,0.0812,63024.0,63018.0,2.64075503]
[1724717517512,0.0812,63024.0,63018.0,2.65475503]
[1724717517919,0.0812,63024.0,63018.0,2.66875503]
[1724717518341,0.0812,63024.0,63018.0,2.68275503]
[1724717518659,0.0812,63024.0,63018.0,2.65475503]
[1724717518798,0.0812,63024.0,63018.0,2.64075503]
[1724717519210,0.0812,63024.0,63018.0,2.65475503]
[1724717519435,0.0628,63029.0,63018.0,2.73535503]
[1724717520071,0.0628,63029.0,63018.0,2.74935503]
[1724717520661,0.0628,63020.0,63018.0,2.3482128]
[1724717520862,0.0628,63020.0,63018.0,2.32437564]
[1724717521066,0.144,63020.0,63018.0,2.33068458]
[1724717521474,0.144,63020.0,63018.0,2.22151375]
[1724717521698,0.144,63020.0,63018.0,2.32968458]
[1724717521910,0.144,63020.0,63018.0,2.33068151]
[1724717522117,0.144,63020.0,63018.0,2.31578499]
[1724717522316,0.144,63020.0,63018.0,2.33068133]
[1724717522536,0.144,63020.0,63018.0,2.32968133]
[1724717522743,0.144,63020.0,63018.0,2.33068133]
[1724717523155,0.144,63020.0,63018.0,2.32968133]
[1724717523358,0.153453,63019.0,63018.0,1.89222429]
[1724717523579,0.153453,63019.0,63018.0,1.87732795]
[1724717524117,0.153453,63019.0,63018.0,1.45995895]
[1724717524547,0.153453,63019.0,63018.0,1.44595895]
[1724717525342,0.153453,63019.0,63018.0,1.43195895]
[1724717525553,0.312135,63019.0,63018.0,0.49005]
[1724717525751,0.946863,63019.0,63018.0,0.50405]
[1724717525964,1.264227,63019.0,63018.0,0.43745]
[1724717526172,1.264227,63019.0,63018.0,0.42345]
[1724717526372,1.33500762,63019.0,63018.0,0.37085]
[1724717526548,1.33500762,63019.0,63018.0,0.30425]
[1724717526549,1.238827,63019.0,63018.0,0.30425]
[1724717526762,1.238827,63019.0,63018.0,0.028]
[1724717527056,1.238827,63019.0,63018.0,0.014]
[1724717527225,1.28599513,63019.0,63018.0,0.014]
[1724717527653,0.317398,63013.0,63006.0,0.158714]
[1724717527792,0.0812,63010.0,63007.0,0.15617801]
[1724717528160,0.0812,63010.0,63007.0,0.31489001]
[1724717528706,0.0812,63010.0,63009.0,0.158707]
[1724717529141,0.0812,63010.0,63009.0,0.31488501]
[1724717529315,0.0812,63010.0,63009.0,0.63229901]
[1724717529527,0.0812,63010.0,63009.0,1.26712701]
[1724717531297,0.0812,63010.0,63009.0,1.28112701]
[1724717531511,0.0812,63010.0,63009.0,1.27512701]
[1724717531772,0.0812,63010.0,63009.0,0.95771301]
[1724717531891,0.0812,63010.0,63009.0,0.96371301]
[1724717532332,0.0812,63010.0,63009.0,0.97271301]
[1724717533340,0.0812,63010.0,62999.0,0.318288]
[1724717533341,0.59626715,63009.0,62979.0,0.03186]
[1724717533594,0.27885215,62983.0,62967.0,0.46876099]
[1724717533795,0.04708107,62993.0,62959.0,0.000824]
[1724717533796,0.27885215,62989.0,62966.0,0.00625036]
[1724717533986,0.001,63001.0,62968.0,0.00417593]
[1724717533987,0.04708107,63001.0,62968.0,0.00417593]
[1724717534188,0.34947376,63004.0,62966.0,0.28510251]
[1724717534189,0.317466,62999.0,62972.0,0.00417537]
[1724717534397,0.0759,62994.0,62979.0,0.15617801]
[1724717534599,0.0759,62994.0,62981.0,0.15617801]
[1724717534827,0.158748,62993.0,62981.0,0.15617801]
[1724717534958,0.0759,62994.0,62981.0,0.15617801]
[1724717535165,0.001,62989.0,62981.0,0.15617801]
[1724717535772,0.001,62989.0,62965.0,0.001]
[1724717535773,0.0759,62988.0,62965.0,0.001]
[1724717535978,0.158772,62984.0,62972.0,0.15617801]
[1724717536365,0.158772,62984.0,62981.0,0.002]
[1724717536565,0.158774,62983.0,62981.0,0.004]
[1724717537368,0.158772,62984.0,62981.0,0.004]
[1724717537712,0.158773,62983.0,62981.0,0.002]
[1724717537911,0.158773,62983.0,62972.0,0.15617801]
[1724717538315,0.001,62984.0,62972.0,0.16817801]
[1724717538522,0.317581,62976.0,62972.0,0.018]
[1724717538767,0.0759,62977.0,62972.0,0.018]
[1724717538768,0.158795,62974.0,62973.0,0.15617801]
[1724717538942,0.476386,62974.0,62973.0,0.15617801]
[1724717539144,0.27885215,62992.0,62955.0,0.000823]
[1724717539145,0.1588,62972.0,62955.0,0.000823]
[1724717539345,0.47620998,62972.0,62955.0,0.000823]
[1724717539602,0.47620998,62972.0,62956.0,0.15884]
[1724717539768,0.47620998,62972.0,62955.0,0.000823]
[1724717539769,0.79381098,62972.0,62955.0,0.000823]
[1724717541361,0.0759,62973.0,62971.0,0.15700201]
[1724717541564,0.002,62974.0,62972.0,0.15617801]
[1724717541565,0.001,62974.0,62972.0,0.15617801]
[1724717542591,0.0759,62980.0,62972.0,0.15617801]
[1724717542592,0.158783,62979.0,62972.0,0.15617801]
[1724717542791,0.158786,62978.0,62972.0,0.15617801]
[1724717542991,0.003,62974.0,62972.0,0.15617801]
[1724717543195,0.003,62974.0,62972.0,0.15700201]
[1724717543975,0.476394,62973.0,62972.0,0.009824]
[1724717544236,0.86989,62973.0,62972.0,0.009824]
[1724717544441,1.187486,62973.0,62972.0,0.009824]
[1724717545193,1.187486,62973.0,62972.0,0.000824]
[1724717545448,1.187486,62973.0,62972.0,0.003824]
[1724717545658,1.188486,62973.0,62972.0,0.013824]
[1724717547205,1.188486,62973.0,62972.0,0.010824]
[1724717547544,1.193486,62973.0,62972.0,0.001824]
[1724717547947,1.193486,62973.0,62972.0,0.000824]
[1724717547948,1.187486,62973.0,62972.0,0.000824]
[1724717548369,1.193486,62973.0,62972.0,0.001824]
[1724717549983,0.87589,62973.0,62972.0,0.001824]
[1724717550308,0.87589,62973.0,62972.0,0.15800201]
[1724717550309,0.0819,62973.0,62972.0,0.15800201]
[1724717550511,0.164798,62973.0,62972.0,0.15800201]
[1724717550953,0.006,62973.0,62972.0,0.15800201]
[1724717551409,0.077,62978.0,62972.0,0.15700201]
[1724717551780,0.001,62973.0,62972.0,0.17000201]
[1724717552149,0.001,62973.0,62972.0,0.16700201]
[1724717552573,0.077,62978.0,62972.0,0.15700201]
[1724717553104,0.077,62978.0,62973.0,0.15617801]
[1724717553638,0.079,62978.0,62973.0,0.15617801]
[1724717553858,0.002,62978.0,62973.0,0.15617801]
[1724717554058,0.077,62983.0,62973.0,0.15617801]
[1724717554648,0.002,62978.0,62973.0,0.15617801]
[1724717554858,0.002,62978.0,62973.0,0.16117801]
[1724717555059,0.077,62983.0,62973.0,0.16117801]
[1724717555312,0.077,62983.0,62973.0,0.15617801]
[1724717555738,0.078,62983.0,62973.0,0.15700201]
[1724717556169,0.085,62983.0,62973.0,0.15800201]
[1724717557321,0.008,62983.0,62973.0,0.15800201]
[1724717557649,0.008,62983.0,62974.0,0.0755]
[1724717557822,0.008,62983.0,62975.0,0.15617801]
[1724717558419,0.47690893,62984.0,62975.0,0.15617801]
[1724717558624,0.077,62988.0,62975.0,0.15617801]
[1724717558823,0.006,62983.0,62975.0,0.15617801]
[1724717559376,0.001,62983.0,62975.0,0.16517801]
[1724717560555,0.077,62988.0,62975.0,0.15717801]
[1724717560979,0.077,62988.0,62975.0,0.16917801]
[1724717561191,0.001,62983.0,62975.0,0.16917801]
[1724717561392,0.077,62988.0,62975.0,0.15717801]
[1724717561757,0.077,62988.0,62975.0,0.15617801]
[1724717562134,0.077,62988.0,62975.0,0.16217801]
[1724717562389,0.077,62988.0,62975.0,0.15817801]
[1724717562567,0.077,62988.0,62975.0,0.15617801]
[1724717562979,0.077,62988.0,62975.0,0.16117801]
[1724717563781,0.079,62988.0,62975.0,0.16117801]
[1724717564194,0.079,62988.0,62975.0,0.15617801]
[1724717564568,0.077,62988.0,62975.0,0.15617801]
[1724717564803,0.083,62988.0,62975.0,0.15717801]
[1724717567097,0.077,62988.0,62975.0,0.15617801]
[1724717567527,0.083,62988.0,62975.0,0.15717801]
[1724717567994,0.077,62988.0,62975.0,0.15617801]
[1724717568356,0.081,62988.0,62975.0,0.16267935]
[1724717568682,0.077,62988.0,62975.0,0.16267935]
[1724717568884,0.0779064,62988.0,62975.0,0.16267935]
[1724717569087,0.0819064,62988.0,62975.0,0.16267935]
[1724717569381,0.0819064,62988.0,62975.0,0.16567935]
[1724717573815,0.0819064,62988.0,62975.0,0.16267935]
[1724717573979,0.0779064,62988.0,62975.0,0.16267935]
[1724717574181,0.0779064,62988.0,62975.0,0.16767935]
[1724717574493,0.0799064,62988.0,62975.0,0.16767935]
[1724717574714,0.0799064,62988.0,62976.0,0.0755]
[1724717574917,0.0799064,62988.0,62978.0,0.0604]
[1724717574918,0.0029064,62988.0,62978.0,0.0604]
[1724717575122,0.0029064,62988.0,62979.0,0.1593533]
[1724717575743,0.0009064,62988.0,62979.0,0.1593533]
[1724717576055,0.0029064,62988.0,62979.0,0.1593533]
[1724717577300,0.0009064,62988.0,62979.0,0.1593533]
[1724717577501,0.0009064,62988.0,62979.0,0.1643533]
[1724717577707,0.0029064,62988.0,62979.0,0.16117801]
[1724717578154,0.0009064,62988.0,62979.0,0.15617801]
[1724717578570,0.0029064,62988.0,62979.0,0.16217801]
[1724717578804,0.0019064,62988.0,62979.0,0.15617801]
[1724717579011,0.0009064,62988.0,62979.0,0.15617801]
[1724717579220,0.0019064,62988.0,62979.0,0.16317801]
[1724717579438,0.0019064,62988.0,62979.0,0.16617801]
[1724717580753,0.0019064,62988.0,62979.0,0.16317801]
[1724717580880,0.0009064,62988.0,62983.0,0.158772]
[1724717581102,0.0009064,62988.0,62984.0,0.15617801]
[1724717581508,0.0019064,62988.0,62984.0,0.15617801]
[1724717581923,0.0009064,62988.0,62984.0,0.15617801]
[1724717582326,0.0019064,62988.0,62984.0,0.15617801]
[1724717582528,0.0009064,62988.0,62984.0,0.15617801]
[1724717582909,0.0019064,62988.0,62984.0,0.16717801]
[1724717584133,0.0019064,62988.0,62984.0,0.17117801]
[1724717585037,0.1606674,62988.0,62984.0,0.17117801]
[1724717585679,0.1606674,62988.0,62984.0,0.17749944]
[1724717588508,0.793837,62985.0,62984.0,0.015]
[1724717588716,1.186872,62985.0,62984.0,0.015]
[1724717588907,1.25768328,62985.0,62984.0,0.015]
[1724717589171,1.51359889,62985.0,62984.0,0.015]
[1724717589327,1.186872,62985.0,62984.0,0.015]
[1724717589537,1.51334556,62985.0,62984.0,0.015]
[1724717589770,1.51334556,62985.0,62984.0,0.004]
[1724717589962,1.51334556,62985.0,62984.0,0.008]
[1724717590170,1.51334556,62985.0,62984.0,0.004]
[1724717590377,1.6107606,62985.0,62984.0,0.004]
[1724717590594,1.63564449,62985.0,62984.0,0.004]
[1724717590755,1.63264449,62985.0,62984.0,0.004]
[1724717591337,0.476386,62974.0,62973.0,0.000824]
[1724717592800,0.477386,62974.0,62973.0,0.010824]
[1724717593297,0.794977,62974.0,62973.0,0.010824]
[1724717594452,0.795977,62974.0,62973.0,0.017824]
[1724717595087,1.113568,62974.0,62973.0,0.017824]
[1724717595502,1.2384538,62974.0,62973.0,0.017824]
[1724717595676,2.28504293,62974.0,62973.0,0.017824]
[1724717595878,2.60263393,62974.0,62973.0,0.017824]
[1724717596078,2.74425649,62974.0,62973.0,0.017824]
[1724717596337,2.99400177,62974.0,62973.0,0.007824]
[1724717596543,2.70263393,62974.0,62973.0,0.004824]
[1724717596688,2.844156,62974.0,62973.0,0.004824]
[1724717596890,3.25142495,62974.0,62973.0,0.000824]
[1724717597507,3.0002008,62974.0,62973.0,0.000824]
[1724717597708,2.84406912,62974.0,62973.0,0.000824]
[1724717597908,2.85306912,62974.0,62973.0,0.001824]
[1724717598389,2.71163393,62974.0,62973.0,0.001824]
[1724717598827,2.71563393,62974.0,62973.0,0.001824]
[1724717599178,2.71163393,62974.0,62973.0,0.001824]
[1724717599559,2.86776561,62974.0,62973.0,0.001824]
[1724717599969,2.86776561,62974.0,62955.0,0.000823]
[1724717599970,1.189517,62960.0,62955.0,0.000823]
[1724717600269,1.78104032,62960.0,62955.0,0.000823]
[1724717600471,1.43929499,62960.0,62955.0,0.000823]
[1724717601168,1.44129499,62960.0,62955.0,0.000823]
[1724717601564,1.36869501,62960.0,62955.0,0.000823]
[1724717601974,1.37769501,62960.0,62959.0,0.001824]
[1724717602183,1.38169501,62960.0,62959.0,0.001824]
[1724717602675,1.69935701,62960.0,62959.0,0.001824]
[1724717602862,1.70335701,62960.0,62959.0,0.001824]
[1724717604142,1.70435701,62960.0,62959.0,0.001824]
[1724717604335,1.70535701,62960.0,62959.0,0.001824]
[1724717606034,1.73025392,62960.0,62959.0,0.001824]
[1724717616145,1.17771391,62960.0,62959.0,0.001824]
[1724717616350,0.20072791,62960.0,62959.0,0.001824]
[1724717616463,0.04189691,62960.0,62959.0,0.080824]
[1724717616667,0.04189691,62960.0,62959.0,0.14937446]
[1724717616883,0.04189691,62960.0,62959.0,0.30820746]
[1724717617463,0.04189691,62960.0,62959.0,0.46438547]
[1724717617679,0.03289691,62960.0,62959.0,0.78105247]
[1724717618118,0.02789691,62960.0,62959.0,0.78105247]
[1724717618433,0.02489691,62960.0,62959.0,0.78405247]
[1724717618628,0.02489691,62960.0,62959.0,0.78105247]
[1724717619032,0.02589691,62960.0,62959.0,0.79105247]
[1724717619655,0.02589691,62960.0,62959.0,1.10871947]
[1724717619856,0.02689691,62960.0,62959.0,1.11371947]
[1724717622580,0.02689691,62960.0,62959.0,0.79605247]
[1724717627140,0.02689691,62960.0,62959.0,1.11371947]
[1724717629126,0.02689691,62960.0,62959.0,0.79605247]
[1724717631761,0.02689691,62960.0,62959.0,1.11371947]
[1724717633280,0.02589691,62960.0,62959.0,1.09871947]
[1724717633477,0.02489691,62960.0,62959.0,1.09871947]
[1724717633675,0.02589691,62960.0,62959.0,1.10371947]
[1724717634735,0.02689691,62960.0,62959.0,1.11771947]
[1724717634936,0.02689691,62960.0,62959.0,1.43538647]
[1724717635140,0.0009053,62971.0,62970.0,1.21407915]
[1724717635397,0.46876099,62980.0,62973.0,0.001]
[1724717635551,0.0009064,62994.0,62973.0,1.27193936]
[1724717635749,0.0009064,62994.0,62973.0,1.83670658]
[1724717635972,0.0009064,62994.0,62973.0,1.85970658]
[1724717636169,0.0009064,62994.0,62987.0,1.21386415]
[1724717636376,0.0009064,62994.0,62987.0,1.37004216]
[1724717636573,0.0009064,62994.0,62987.0,1.68756716]
[1724717636730,0.0009064,62994.0,62987.0,1.68656716]
[1724717637501,0.0009064,62994.0,62987.0,1.78756716]
[1724717638259,0.0009064,62994.0,62987.0,1.78656716]
[1724717638460,0.0009064,62994.0,62987.0,1.80156716]
[1724717638696,0.0009064,62994.0,62987.0,1.80806284]
[1724717639286,0.0009064,62994.0,62987.0,1.82206284]
[1724717641500,0.0009064,62994.0,62987.0,1.80806284]
[1724717642301,0.0009064,62994.0,62987.0,1.82206284]
[1724717642513,0.0009064,62994.0,62987.0,1.85644634]
[1724717644906,0.0009064,62994.0,62987.0,2.17397134]
[1724717647092,0.0009064,62994.0,62967.0,0.317623]
[1724717647093,0.0168,62982.0,62967.0,0.317623]
[1724717647216,0.75345656,62988.0,62959.0,0.000824]
[1724717647217,0.27885215,62977.0,62959.0,0.000824]
[1724717647439,0.15617801,62981.0,62960.0,0.15617801]
[1724717647440,0.1,62976.0,62960.0,0.15617801]
[1724717647940,0.0168,62975.0,62959.0,0.000824]
[1724717648154,0.02489008,62973.0,62959.0,0.000824]
[1724717648355,0.158828,62962.0,62959.0,0.001824]
[1724717648493,0.317638,62965.0,62959.0,0.002824]
[1724717648690,0.317638,62965.0,62959.0,0.001824]
[1724717648894,0.317601,62972.0,62959.0,0.000824]
[1724717649215,0.317601,62972.0,62959.0,0.002824]
[1724717649401,0.158827,62962.0,62959.0,0.001824]
[1724717649598,0.317646,62964.0,62959.0,0.000824]
[1724717650023,0.15883,62961.0,62959.0,0.001824]
[1724717651295,0.15883,62961.0,62959.0,0.002824]
[1724717651448,0.158831,62960.0,62959.0,0.000824]
[1724717651657,0.158831,62960.0,62959.0,0.001824]
[1724717652070,0.158831,62960.0,62959.0,0.000824]
[1724717652469,0.158831,62960.0,62959.0,0.001824]
[1724717653027,0.159831,62960.0,62959.0,0.000824]
[1724717653432,0.166831,62960.0,62959.0,0.000824]
[1724717653631,0.484493,62960.0,62959.0,0.000824]
[1724717655813,0.802155,62960.0,62959.0,0.000824]
[1724717662991,1.119817,62960.0,62959.0,0.000824]
[1724717667073,0.802155,62960.0,62959.0,0.000824]
[1724717668058,1.119817,62960.0,62959.0,0.000824]
[1724717668945,1.437479,62960.0,62959.0,0.000824]
[1724717669069,1.71633115,62960.0,62959.0,0.000824]
[1724717669435,2.22137116,62960.0,62959.0,0.000824]
[1724717669629,2.34437116,62960.0,62959.0,0.000824]
[1724717670034,2.34637116,62960.0,62959.0,0.000824]
[1724717670418,2.33937116,62960.0,62959.0,0.000824]
[1724717670611,2.33837116,62960.0,62959.0,0.001824]
[1724717670814,2.35037116,62960.0,62959.0,0.001824]
[1724717671022,2.35737116,62960.0,62959.0,0.002824]
[1724717671199,2.33837116,62960.0,62959.0,0.000824]
[1724717671647,2.33837116,62960.0,62959.0,0.002824]
[1724717671648,2.36637116,62960.0,62959.0,0.002824]
[1724717672089,2.33837116,62960.0,62959.0,0.000824]
[1724717672292,2.01870916,62960.0,62959.0,0.000824]
[1724717672570,1.85353115,62960.0,62959.0,0.001824]
[1724717673108,1.90028115,62960.0,62959.0,0.001824]
[1724717673510,1.91428115,62960.0,62959.0,0.001824]
[1724717673829,1.56541915,62960.0,62959.0,0.001824]
[1724717674244,1.172567,62960.0,62959.0,0.000824]
[1724717674884,1.158567,62960.0,62959.0,0.000824]
[1724717675085,1.172567,62960.0,62959.0,0.000824]
[1724717675291,1.186567,62960.0,62959.0,0.000824]
[1724717679416,0.868905,62960.0,62959.0,0.000824]
[1724717679587,0.233581,62960.0,62959.0,0.000824]
[1724717679804,0.07475,62960.0,62959.0,0.000824]
[1724717680396,0.04675,62960.0,62959.0,0.000824]
[1724717680611,0.06075,62960.0,62959.0,0.000824]
[1724717680816,0.07175,62960.0,62959.0,0.000824]
[1724717681048,0.06075,62960.0,62959.0,0.000824]
[1724717681245,0.523243,62960.0,62959.0,0.000824]
[1724717681444,0.539243,62960.0,62959.0,0.000824]
[1724717682272,0.221581,62960.0,62959.0,0.000824]
[1724717686865,0.06275,62960.0,62959.0,0.000824]
[1724717687990,0.05175,62960.0,62959.0,0.000824]
[1724717688209,0.04675,62960.0,62959.0,0.000824]
[1724717688392,0.05675,62960.0,62959.0,0.000824]
[1724717688590,0.06075,62960.0,62959.0,0.000824]
[1724717692277,0.06075,62960.0,62959.0,1.10341898]
[1724717692477,0.06075,62960.0,62959.0,1.53838263]
[1724717692660,0.06075,62960.0,62959.0,1.53333266]
[1724717693544,0.05075,62960.0,62959.0,1.53333266]
[1724717693893,0.006,62960.0,62959.0,1.37367566]
[1724717694100,0.007,62960.0,62959.0,1.53550866]
[1724717694247,0.001,62960.0,62959.0,1.53250866]
[1724717694447,0.02488694,62977.0,62971.0,0.158802]
[1724717694650,0.02488694,62977.0,62969.0,0.317615]
[1724717694855,0.02488694,62977.0,62971.0,0.158803]
[1724717695232,0.02488694,62977.0,62971.0,0.317606]
[1724717695502,0.02488694,62977.0,62972.0,0.158799]
[1724717696063,0.02488694,62977.0,62973.0,0.158798]
[1724717696631,0.02488694,62977.0,62971.0,0.159801]
[1724717696979,0.02488694,62977.0,62972.0,0.1588]
[1724717697424,0.02588694,62977.0,62973.0,0.159797]
[1724717697575,0.02588694,62977.0,62974.0,0.0753]
[1724717697783,0.02488694,62977.0,62974.0,0.0753]
[1724717698105,0.02588694,62977.0,62974.0,0.0753]
[1724717698289,0.02588694,62977.0,62974.0,0.234095]
[1724717698689,0.02688694,62977.0,62974.0,0.234095]
[1724717698887,0.02488694,62977.0,62974.0,0.234095]
[1724717699206,0.02488694,62977.0,62974.0,0.237095]
[1724717699432,0.02588694,62977.0,62974.0,0.237095]
[1724717699884,0.02588694,62977.0,62974.0,0.238095]
[1724717700085,0.02588694,62977.0,62975.0,0.158792]
[1724717700360,0.02588694,62977.0,62976.0,0.15879]
[1724717700572,0.02588694,62977.0,62976.0,1.08623001]
[1724717700780,0.02588694,62977.0,62976.0,0.1361]
[1724717701024,0.001,62977.0,62976.0,0.1361]
[1724717701227,0.317541,62984.0,62976.0,0.1361]
[1724717701430,0.158779,62981.0,62976.0,0.1361]
[1724717701628,0.001,62977.0,62976.0,0.1361]
[1724717702138,0.002,62977.0,62976.0,0.1391]
[1724717702996,0.002,62977.0,62976.0,0.29789]
[1724717703506,0.002,62977.0,62976.0,0.1391]
[1724717703959,0.002,62977.0,62976.0,1.09023001]
[1724717704677,0.002,62977.0,62976.0,0.77264901]
[1724717704886,0.002,62977.0,62976.0,1.09023001]
[1724717705294,0.002,62977.0,62976.0,0.77264901]
[1724717708515,0.0029064,62977.0,62976.0,0.77264901]
[1724717712102,0.0029064,62977.0,62976.0,1.09023001]
[1724717712303,0.0029064,62977.0,62976.0,0.77264901]
[1724717712575,0.0029064,62977.0,62976.0,1.09023001]
[1724717712962,0.0029064,62977.0,62976.0,0.77264901]
[1724717713984,0.0029064,62977.0,62976.0,0.45506801]
[1724717714282,0.0029064,62977.0,62976.0,0.77264901]
[1724717722010,0.0029064,62977.0,62976.0,0.45506801]
[1724717722632,0.0029064,62977.0,62976.0,0.77264901]
[1724717723738,0.0029064,62977.0,62976.0,0.45506801]
[1724717725265,0.0029064,62977.0,62976.0,0.004]
[1724717725601,0.93625029,62977.0,62976.0,0.004]
[1724717725804,1.25382629,62977.0,62976.0,0.004]
[1724717726544,0.158813,62967.0,62963.0,0.0612]
[1724717726688,0.158813,62967.0,62964.0,0.15617801]
[1724717727742,0.317607,62971.0,62964.0,0.15617801]
[1724717727954,0.317594,62974.0,62964.0,0.15617801]
[1724717728151,0.001,62967.0,62964.0,0.15917801]
[1724717728325,0.001,62967.0,62965.0,0.18900389]
[1724717728688,0.001,62967.0,62965.0,0.34782189]
[1724717729019,0.001,62967.0,62965.0,0.18900389]
[1724717729339,0.001,62967.0,62966.0,0.29817801]
[1724717729539,0.158793,62975.0,62968.0,0.158809]
[1724717729739,0.0009064,62977.0,62971.0,0.10820389]
[1724717729740,0.158796,62974.0,62971.0,0.10820389]
[1724717730163,0.158796,62974.0,62969.0,0.0808]
[1724717730701,0.158793,62975.0,62969.0,0.39578401]
[1724717731118,0.0009064,62977.0,62969.0,0.39578401]
[1724717731554,0.001,62974.0,62971.0,0.003]
[1724717732082,0.159796,62974.0,62971.0,0.003]
[1724717732285,0.1588,62972.0,62971.0,0.003]
[1724717733092,0.158798,62973.0,62971.0,0.003]
[1724717733574,0.318594,62974.0,62966.0,0.06633477]
[1724717733575,0.158804,62971.0,62966.0,0.06633477]
[1724717733801,0.158804,62971.0,62969.0,0.003]
[1724717734001,0.158804,62971.0,62966.0,0.06633477]
[1724717734535,0.02488721,62972.0,62971.0,0.004]
[1724717735165,0.18368921,62972.0,62969.0,0.003]
[1724717735521,0.001,62971.0,62969.0,0.003]
[1724717735720,0.001,62971.0,62966.0,0.22914977]
[1724717736023,0.18368721,62972.0,62966.0,0.22514977]
[1724717736272,0.02488721,62972.0,62966.0,0.06633477]
[1724717736474,0.18368921,62972.0,62969.0,0.004]
[1724717736630,0.158803,62971.0,62969.0,0.004]
[1724717737691,0.159803,62971.0,62969.0,0.004]
[1724717738069,0.158803,62971.0,62969.0,0.004]
[1724717738265,0.159803,62971.0,62969.0,0.007]
[1724717738466,0.001,62971.0,62969.0,0.007]
[1724717738644,0.001,62971.0,62970.0,0.0808]
[1724717739867,0.001,62971.0,62970.0,0.239605]
[1724717740064,0.002,62971.0,62970.0,0.77459401]
[1724717740270,0.001,62971.0,62970.0,0.77459401]
[1724717740472,0.002,62971.0,62970.0,1.09520501]
[1724717741692,0.001,62971.0,62970.0,1.09520501]
[1724717742094,0.002,62971.0,62970.0,1.09920501]
[1724717746288,0.002,62971.0,62970.0,0.46398301]
[1724717747375,0.002,62971.0,62970.0,0.30517801]
[1724717747796,0.002,62971.0,62970.0,0.46398301]
[1724717749982,0.002,62971.0,62970.0,0.30517801]
[1724717750592,0.002,62971.0,62970.0,0.46398301]
[1724717751311,0.002,62971.0,62970.0,0.30517801]
[1724717752113,0.002,62971.0,62970.0,0.46398301]
[1724717752889,0.002,62971.0,62970.0,0.30517801]
[1724717753370,0.002,62971.0,62970.0,0.007]
[1724717756165,0.0029064,62971.0,62970.0,0.007]
[1724717757947,0.1617094,62971.0,62970.0,0.007]
[1724717758445,0.4793154,62971.0,62970.0,0.007]
[1724717758973,0.7969214,62971.0,62970.0,0.007]
[1724717760818,0.4793154,62971.0,62970.0,0.007]
[1724717764765,0.1617094,62971.0,62970.0,0.007]
[1724717765839,0.0029064,62971.0,62970.0,0.247005]
[1724717765960,0.0029064,62971.0,62970.0,0.625616]
[1724717766162,0.0029064,62971.0,62970.0,1.41701601]
[1724717767192,0.0029064,62971.0,62970.0,1.73562701]
[1724717767418,0.0009064,62977.0,62976.0,1.04439125]
[1724717767619,0.0009064,62977.0,62976.0,1.61815026]
[1724717768034,0.0009064,62977.0,62976.0,1.50991101]
[1724717768652,0.0019064,62977.0,62976.0,1.51291101]
[1724717768861,0.0029064,62977.0,62976.0,1.51691101]
[1724717769923,0.0019064,62977.0,62976.0,1.51291101]
[1724717770331,0.0019064,62977.0,62976.0,1.52391101]
[1724717770733,0.0009064,62977.0,62976.0,1.52391101]
[1724717770936,0.0009064,62977.0,62976.0,1.50991101]
[1724717771115,0.0009064,62977.0,62976.0,1.52391101]
[1724717771116,0.0019064,62977.0,62976.0,1.52391101]
[1724717771315,0.0019064,62977.0,62976.0,1.53791101]
[1724717771755,0.0009064,62977.0,62976.0,1.52391101]
[1724717772158,0.0009064,62977.0,62976.0,1.51091101]
[1724717772355,0.0009064,62977.0,62976.0,1.52491101]
[1724717772591,0.0009064,62977.0,62976.0,1.52998673]